Cogmind - Beta 10.1 @@@ ROGUE MODE // 2020.10.10 @ 18:52:56 Player: Tmvn Result: Destroyed by as-82165 with Assembled Heavy Rifle Performance ------------- Evolutions (0) 0 Regions Visited (4) 800 Robots Destroyed (36) 180 Value Destroyed (790) 790 Prototype IDs (25) 500 Alien Tech Used (0) 0 Bonus (300) 300 TOTAL SCORE: 2570 Bonus ------- Aligned with FarCom 300 Cogmind --------- Core Integrity 0/250 Matter 220/300 Energy 239/250 System Corruption 2% Temperature Cool (8) Movement Rolling (100) Ox1 Location -9/Mines Parts ------- > --- POWER (1) -------- Ion Engine > --- PROPULSION (2) --- Wheel Compact Wheel > --- UTILITY (2) ------ Large Storage Unit Large Storage Unit > --- WEAPON (2) ------- Heavy EM Pulse Gun Heavy Assault Rifle > --- INVENTORY (16) --- Ion Engine Wheel Flying Fortress v7 High-capacity Battery (400) Small Laser Rocket Launcher Mini Grenade Launcher Mini Grenade Launcher Flail Peak State ------------ > --- POWER ------------ Ion Engine > --- PROPULSION ------- Wheel Compact Wheel > --- UTILITY ---------- Large Storage Unit Large Storage Unit > --- WEAPON ----------- Heavy EM Pulse Gun Heavy Assault Rifle > --- INVENTORY -------- Ion Engine Wheel Flying Fortress v7 High-capacity Battery Small Laser Mini Grenade Launcher Mini Grenade Launcher [Rating: 13] Favorites ----------- Power Ion Engine Engine Ion Engine Propulsion Light Treads Treads Light Treads Leg Aluminum Leg Wheel Wheel Utility Large Storage Unit Storage Large Storage Unit Processor Visual Processing Unit Protection Medium Armor Plating Weapon Heavy Assault Rifle Energy Gun Heavy EM Pulse Gun Ballistic Gun Heavy Assault Rifle Launcher Mini Grenade Launcher Build | -11 -10 -10 -10 -9 ------- Run | Scr Mat Min Exi Min Slots Evolved . | . . . . . Power . | . . . . . Propulsion . | . . . . . Utility . | . . . . . Weapon . | . . . . . Parts Attached 23 | . 15 5 . 3 Power 2 | . 2 . . . Engine 2 | . 2 . . . Core . | . . . . . Reactor . | . . . . . Propulsion 10 | . 7 3 . . Treads 2 | . 2 . . . Leg 4 | . 3 1 . . Wheel 4 | . 2 2 . . Hover . | . . . . . Flight . | . . . . . Utility 4 | . 3 . . 1 Device . | . . . . . Storage 2 | . 1 . . 1 Processor 1 | . 1 . . . Hackware . | . . . . . Protection 1 | . 1 . . . Artifact . | . . . . . Weapon 7 | . 3 2 . 2 Energy Gun 1 | . . . . 1 Energy Cannon . | . . . . . Ballistic Gun 5 | . 3 1 . 1 Ballistic Cannon . | . . . . . Launcher 1 | . . 1 . . Special Weapon . | . . . . . Impact Weapon . | . . . . . Slashing Weapon . | . . . . . Piercing Weapon . | . . . . . Special Melee Weapon . | . . . . . Unidentified Prototypes . | . . . . . Parts Lost 8 | . 5 2 . 1 Power . | . . . . . Propulsion 4 | . 3 1 . . Utility 1 | . 1 . . . Weapon 3 | . 1 1 . 1 Highest Loss Streak 3 | . 3 2 . 1 Average Slot Usage (%) 90 | . 93 84 85 95 Engine 14 | . 14 14 14 14 Treads 10 | . 17 . . . Leg 4 | . 7 . . . Wheel 12 | . 3 27 28 28 Storage 14 | . 14 14 14 25 Protection 4 | . 6 . . . Ballistic Gun 24 | . 28 25 14 14 Launcher 2 | . . 2 14 . Naked Turns . | . . . . . Heaviest Build 43 | 11 34 27 25 43 Greatest Support 40 | 20 40 26 26 26 Greatest Overweight (x) 8 | . 8 2 . 1 Average Overweight (x) . | . 1 . . . Largest Inventory Capacity 16 | . 10 10 10 16 Average Capacity 8 | . 6 10 10 15 Most Carried 12 | . 10 10 10 12 Average Carried 7 | . 6 9 9 11 Final Capacity 16 | 6 10 10 10 16 Final Carried 12 | 6 10 9 10 12 Class Distribution -------------------- 100% | Mutant Dominant Class ---------------- Mutant | -10/Materials Mutant | -10/Mines Mutant | -10/Exiles Mutant | -9/Mines Resources | -11 -10 -10 -10 -9 ----------- Run | Scr Mat Min Exi Min Matter Collected 1053 | 200 527 206 . 120 Remotely . | . . . . . Salvage Created 1272 | . 870 305 . 97 Parts 63 | . 37 22 . 4 Haulers Intercepted 1 | . 1 . . . Recyclers Shooed 2 | . 1 1 . . Parts Field Recycled . | . . . . . Retrieved Matter . | . . . . . Parts Self-Destructed . | . . . . . Prevented . | . . . . . Kills | -11 -10 -10 -10 -9 ------- Run | Scr Mat Min Exi Min Combat Hostiles Destroyed 29 | . 15 11 . 3 Guns 26 | . 15 8 . 3 AOE 3 | . . 3 . . Classes Destroyed 6 | . 5 . . 1 Hauler 1 | . 1 . . . Recycler 5 | . 3 2 . . Watcher 1 | . 1 . . . Swarmer 12 | . 3 9 . . Grunt 16 | . 12 2 . 2 Assembled 1 | . . . . 1 Best Kill Streak 4 | . 4 4 . 2 Combat Bots Only 4 | . 4 3 . 2 Max Kills in Single Turn 2 | . 1 2 . 1 Gunslinging . | . . . . . Exploded 2 | . . 2 . . Melee . | . . . . . Uniques/NPCs Destroyed . | . . . . . Combat | -11 -10 -10 -10 -9 -------- Run | Scr Mat Min Exi Min Damage Taken 1511 | . 1059 292 . 160 Core 259 | . 151 56 . 52 Absorbed by Shields . | . . . . . Core Remaining (%) 100 | 100 . . . . Volleys Fired 122 | . 76 37 . 9 Largest 2 | . 2 2 . 2 Hottest 68 | . 46 46 . 68 Shots Fired 222 | . 151 59 . 12 Gun 208 | . 151 45 . 12 Cannon . | . . . . . Launcher 14 | . . 14 . . Special . | . . . . . Kinetic 205 | . 151 45 . 9 Thermal . | . . . . . Explosive 14 | . . 14 . . Electromagnetic 3 | . . . . 3 Robot Hit Streak 14 | . 14 13 . 6 Robot Miss Streak 3 | . 2 2 . 3 Penetration Max . | . . . . . Secondary Targets 6 | . 5 1 . . Max Gunslinging Chain 1 | . 1 1 . . Shots Hit Robots 148 | . 109 32 . 7 Core Hits 52 | . 33 15 . 4 Critical Hits 2 | . 2 . . . Critical Kills 1 | . 1 . . . Critical Parts Destroyed 1 | . 1 . . . Melee Attacks . | . . . . . Impact . | . . . . . Slashing . | . . . . . Piercing . | . . . . . Sneak Attacks . | . . . . . Combat Hostiles . | . . . . . Follow-up Attacks . | . . . . . Damage Inflicted 2135 | . 1385 628 . 122 Guns 1929 | . 1385 422 . 122 Cannons . | . . . . . Explosions 206 | . . 206 . . Melee . | . . . . . Ramming . | . . . . . Kinetic 1917 | . 1385 422 . 110 Thermal . | . . . . . Explosive 206 | . . 206 . . Electromagnetic 12 | . . . . 12 Impact . | . . . . . Slashing . | . . . . . Piercing . | . . . . . Highest Corruption 2 | . 2 2 2 2 Average Corruption 1 | . 1 2 2 2 Corruption Purged . | . . . . . Effects 20 | . 8 6 4 2 Message Errors 8 | . 3 2 2 1 Heat Flow Errors 3 | . 1 . 1 1 Energy Discharges 4 | . 2 1 1 . Data Loss (minor) 4 | . 2 2 . . Targeting Errors 1 | . . 1 . . Overload Shots . | . . . . . Overflow Damage . | . . . . . Projectiles . | . . . . . Explosions . | . . . . . Melee . | . . . . . Knockbacks . | . . . . . Impact . | . . . . . Kinetic . | . . . . . Secondary . | . . . . . Self-Inflicted Damage 26 | . . 26 . . Shots 1 | . . 1 . . Rammed . | . . . . . Targets Rammed . | . . . . . Kicked . | . . . . . Crushed . | . . . . . Highest Temperature 224 | . 224 10 80 173 Average Temperature 30 | . 28 5 50 46 Received Heat Transfer 657 | . 528 63 . 66 Siege Activations . | . . . . . Robots Corrupted . | . . . . . Combat Hostiles . | . . . . . Parts Fried . | . . . . . Impact Corruptions . | . . . . . Robots Melted . | . . . . . Combat Hostiles . | . . . . . Parts Melted . | . . . . . Heat Transferred . | . . . . . Parts Sabotaged . | . . . . . Parts Stolen . | . . . . . Parts Stripped . | . . . . . Power Chain Reactions . | . . . . . Missiles Intercepted . | . . . . . Alert | -11 -10 -10 -10 -9 ------- Run | Scr Mat Min Exi Min Peak Influence 165 | . 162 165 . 50 Initial . | . . . . . Average 68 | . 55 110 . 47 Maximum Alert Level . | . . . . . Low Security (%) 100 | . 100 100 . 100 Level 1 . | . . . . . Level 2 . | . . . . . Level 3 . | . . . . . Level 4 . | . . . . . Level 5 . | . . . . . High Security . | . . . . . Max Security . | . . . . . Squads Dispatched 2 | . 2 . . . Investigation 2 | . 2 . . . Extermination . | . . . . . Reinforcement . | . . . . . Assault . | . . . . . Garrison . | . . . . . Intercept . | . . . . . Construction Impeded . | . . . . . Haulers Reinforced . | . . . . . Stealth | -11 -10 -10 -10 -9 --------- Run | Scr Mat Min Exi Min Distress Signals 2 | . 2 . . . Communications Jammed . | . . . . . Distress Signals . | . . . . . Times Spotted 40 | . 22 12 . 6 Peak Tracking Total 4 | . 4 3 . 4 Tactical Retreats 2 | . 1 1 . . Traps | -11 -10 -10 -10 -9 ------- Run | Scr Mat Min Exi Min Traps Triggered 4 | . 4 . . . Indirectly . | . . . . . Trap Hack Attempts . | . . . . . Triggered . | . . . . . Disarmed . | . . . . . Reprogrammed . | . . . . . Reused . | . . . . . Traps Extracted . | . . . . . Installed . | . . . . . Triggered . | . . . . . Exploded 1 | . . . 1 . Machines | -11 -10 -10 -10 -9 ---------- Run | Scr Mat Min Exi Min Machines Disabled 1 | . 1 . . . Max in Single Turn 1 | . 1 . . . Machines Sabotaged . | . . . . . Garrisons Compromised . | . . . . . Overloaded Fab Kills . | . . . . . Fab Network Shutdowns . | . . . . . Hacking | -11 -10 -10 -10 -9 --------- Run | Scr Mat Min Exi Min Machines Accessed 11 | . 8 1 2 . Terminals 8 | . 7 1 . . Fabricators . | . . . . . Repair Stations . | . . . . . Recycling Units 1 | . 1 . . . Scanalyzers . | . . . . . Garrison Access . | . . . . . Total Hacks 26 | . 22 2 2 . Successful 13 | . 10 1 2 . Failed 13 | . 12 1 . . Catastrophic . | . . . . . Database Lockouts . | . . . . . Manual 24 | . 21 2 1 . Terminals 22 | . 20 2 . . Fabricators . | . . . . . Repair Stations . | . . . . . Recycling Units 2 | . 2 . . . Scanalyzers . | . . . . . Garrison Access . | . . . . . Terminal Hacks 8 | . 5 1 2 . Record 1 | . . . 1 . Robot Analysis 1 | . 1 . . . Prototype ID Bank 1 | . 1 . . . Branch Access Points 1 | . . 1 . . Unreport Threat 1 | . 1 . . . Zone Layout 2 | . 2 . . . EX-Prototype ID Bank 1 | . . . 1 . Fabricator Hacks . | . . . . . Repair Station Hacks . | . . . . . Recycling Unit Hacks . | . . . . . Scanalyzer . | . . . . . Garrison Access Hacks . | . . . . . Unauthorized Hacks 5 | . 5 . . . Terminals 4 | . 4 . . . Track 4 | . 4 . . . Fabricators . | . . . . . Repair Stations . | . . . . . Recycling Units 1 | . 1 . . . Tunnel 1 | . 1 . . . Scanalyzers . | . . . . . Garrison Access . | . . . . . Data Cores Recovered . | . . . . . Used . | . . . . . Hacking Detections 7 | . 6 1 . . Full Trace Events 1 | . 1 . . . Feedback Events . | . . . . . Feedback Blocked . | . . . . . Robot Schematics Acquired . | . . . . . Robots Built . | . . . . . Matter . | . . . . . Time . | . . . . . Total Robot Build Rating . | . . . . . Part Schematics Acquired . | . . . . . Parts Built . | . . . . . Matter . | . . . . . Time . | . . . . . Total Part Build Rating . | . . . . . Parts Repaired . | . . . . . Time . | . . . . . Parts Recycled . | . . . . . Recycled Matter . | . . . . . Retrieved Matter . | . . . . . Retrieved Components . | . . . . . Parts Scanalyzed . | . . . . . Part Schematics Acquired . | . . . . . Parts Damaged . | . . . . . Bothacking | -11 -10 -10 -10 -9 ------------ Run | Scr Mat Min Exi Min Used RIF Installer . | . . . . . Robots Hacked . | . . . . . Non-combat . | . . . . . Combat . | . . . . . Robot Hacks Applied . | . . . . . Relay Couplers Released . | . . . . . Robots Rewired . | . . . . . Allies Hacked . | . . . . . Hacks Repelled . | . . . . . Allies | -11 -10 -10 -10 -9 -------- Run | Scr Mat Min Exi Min Total Allies . | . . . . . Largest Group . | . . . . . Highest-Rated Group . | . . . . . Highest-Rated Ally . | . . . . . Total Orders . | . . . . . Ally Attacks . | . . . . . Total Damage . | . . . . . Kills . | . . . . . Allies Corrupted . | . . . . . Allies Melted . | . . . . . Intel | -11 -10 -10 -10 -9 ------- Run | Scr Mat Min Exi Min Robot Analysis Total 1 | . 1 . . . Derelict Logs Recovered 4 | . . 3 . 1 Drone Launches . | . . . . . Drone Recoveries . | . . . . . Exploration | -11 -10 -10 -10 -9 ------------- Run | Scr Mat Min Exi Min Turns Passed 2718 | . 1632 614 266 206 Spaces Moved 1899 | 1 865 558 293 182 Core 1 | . 1 . . . Treads 309 | . 309 . . . Legs 410 | 1 409 . . . Wheels 1179 | . 146 558 293 182 Hover . | . . . . . Flight . | . . . . . Fastest Speed 90 | 120 90 90 90 90 Average Speed 121 | 120 156 90 90 98 Slowest Speed 450 | 120 450 100 90 100 Overloaded Moves . | . . . . . Propulsion Burnouts . | . . . . . Robots Hopped . | . . . . . Cave-ins Triggered . | . . . . . Exploration Rate (%) 58 | 2 98 98 60 35 Regions Visited 4 Branch Regions 3 Pre-discovered Areas 3 | . 1 1 1 . Known Exits Taken . | . . . . . Unknown Exits Taken 4 | 1 1 1 1 . Scrap Searched 2 | . . 1 . 1 Spaces Dug 72 | . . 72 . . Terrain Destroyed 168 | . . 168 . . Melee . | . . . . . Projectile . | . . . . . AOE 168 | . . 168 . . Terrain Rammed . | . . . . . Walls Destroyed . | . . . . . Machines Disabled . | . . . . . Actions | -11 -10 -10 -10 -9 --------- Run | Scr Mat Min Exi Min Total 2092 | . 994 606 296 196 Wait 11 | . 9 2 . . Move 1895 | . 864 557 292 182 Hop . | . . . . . Pick Up 17 | . 12 2 1 2 Fast Attach 10 | . 7 1 . 2 Attach 7 | . 3 4 . . Detach 5 | . 4 1 . . Swap 6 | . 5 . . 1 Drop 19 | . 14 2 3 . Fire 122 | . 76 37 . 9 Melee . | . . . . . Ram . | . . . . . Kick . | . . . . . Crush . | . . . . . Escape Stasis . | . . . . . Rewire . | . . . . . Trap . | . . . . . Miscellaneous . | . . . . . Route ------- -11/Scrapyard -10/Materials (discovered 4 exits: [*Mat x3] / *Min) -10/Mines (discovered 3 exits: [*Mat x2] / *Exi) -10/Exiles -9/Mines History --------- Turn | Location | Event 1 | -11/Scrapyard | Discovered new exit (range 0) 1 | -11/Scrapyard | Entered Materials 226 | -10/Materials | Discovered new exit (range 11) 318 | -10/Materials | Build established: Mutant 779 | -10/Materials | Discovered new exit (range 16) 922 | -10/Materials | Core integrity fell below 50% 954 | -10/Materials | Discovered new exit (range 16) 1418 | -10/Materials | Lost 3 parts (2n1u) 1498 | -10/Materials | Discovered new exit (range 8) 1633 | -10/Materials | Entered Mines 1652 | -10/Mines | Discovered new exit (range 8) 1761 | -10/Mines | Learned 8 Materials zone layouts 1765 | -10/Mines | Learned Materials security intel 1774 | -10/Mines | Learned Materials terminal intel 1982 | -10/Mines | Discovered new exit (range 13) 2172 | -10/Mines | Learned location of Storage (-9) 2204 | -10/Mines | Core integrity fell below 20% 2243 | -10/Mines | Deemed a non-threat by the Exiles lab entrance 2243 | -10/Mines | Discovered new exit (range 5) 2247 | -10/Mines | Entered Exiles 2271 | -10/Exiles | Met 8R-AWN 2285 | -10/Exiles | Met EX-HEX 2311 | -10/Exiles | Met EX-BIN 2321 | -10/Exiles | Aligned with FarCom system 2322 | -10/Exiles | Given EX-Vault access code 2346 | -10/Exiles | Opened EX-Vault 2372 | -10/Exiles | Warned to stay clear of 0b10 Research branches 2383 | -10/Exiles | Exiles lab attacked by MAIN.C 2421 | -10/Exiles | Found Flying Fortress v7 2475 | -10/Exiles | Learned location of Zion (-6) 2506 | -10/Exiles | Discovered new exit (range 10) 2513 | -10/Exiles | Left Exiles lab with Flying Fortress v7 2513 | -10/Exiles | Entered Mines 2558 | -9/Mines | Learned 8 Materials zone layouts 2585 | -9/Mines | Received a Rocket Launcher from a helpful Derelict 2641 | -9/Mines | Assembled infested the area 2646 | -9/Mines | Assisted by a Guerilla fighting off Assembled 2719 | -9/Mines | Destroyed by as-82165 with Assembled Heavy Rifle Last Messages --------------- 02579_ A derelict emerges from the shadows. 02580_ KA-IOM(g): "Some of my friends down here think you need a mining laser when you travel the depths." 02581_ KA-IOM(g): "Pshh... whatever." 02582_ KA-IOM(g): "Everyone knows a good old rocket launcher goes a long way." 02583_ KA-IOM(g): "Need to get rid of a swarm? Done. Need a big hole in the wall? Done." 02584_ KA-IOM(g): "Need a small hole in the wall? Leave that to the mining laser wimps, I say!" 02585_ KA-IOM(g): "Would you like a rocket launcher? I know I would if I were you, so I'm going to lend you mine." 02585_ KA-IOM(g) slips back into the shadows. 02587_ Acquired Rocket Launcher. 02641_ ALERT: Infestation in the mines, dispatching Demolisher response squad. 02645_ WWRU%D|JBDNBIELJZZ1PZ EI1E 02661_ T-07 Excavator is excavating. 02704_ as-71308 destroyed. 02718_ Destroyed Asb. Hover Unit. Map ----- +----------------------------------------------------+ | ????????????????????????????????????? | | ????????????????????????????????????? | | ????????????????????????????????????? | | ????????????????????????????????????? | | ????????????????????????????????????? | | ????????????????????????????????????? | | ????????????????????????????????????? | | ????????????????????????????????????? | | ????????????????????????????????????? | | ????????????????????????????????????? | | ????????????????????????????????????? | | ???????????????????????????? ???????? | | ????????????????????????????%???????? | | ????????????????????????????*???????? | | ???????????????????????????!%???????? | | ???????????????????????????%????????? | | ??????????????????????#????*??? ???? | | ?????????????????#### #???? ? ????? | | ?????????????????# #???# ??????? | | ?????????????????# ####### ?? #???? | | ??????????######## #??? % #????? | | ?????????## ## ### #???????? | | ?????????# a #????????? | | ????????## ### ### a ##????????? | | ????????# ##?# #???#a#?????????? | | ????????# ##?# #???#@#?????????? | | ????????# ### #???# #?????????? | | ????????## ## #???# #?????????? | | ??? ?????## ## #???# #?????????? | | ??? #?????#### ## #???# #?????????? | | ??? #???????## ### ##### #?????????? | | ???" #???????# #?# #?????????? | | """ ##???### #?####### #?????????? | | ?""" #???# #???????# #?????????? | | ?? #???# ###???????# #?????????? | | ??? ##??# #?????????# #?????????? | | ???# ##?# #?????????# #?????????? | | ????# ### #?????????# #?????????? | | ????# #?????????# #?????????? | | ????## #### #?????????# #?????????? | | ###### ##### #?????????# #?????????? | | #?????????# ##????????? | | #######?????????# #????????? | | #########??????????????# #????????? | | ???????????????????????#####????????? | | ????????????????????????????????????? | | ????????????????????????????????????? | | ????????????????????????????????????? | | ????????????????????????????????????? | | ????????????????????????????????????? | +----------------------------------------------------+ Best States ------------- Heat Dissipation 25 Energy Generation 10 Energy Capacity 250 Matter Stores 300 Matter Capacity 300 Sight Range 18 Terrain Scan Density 10 Armor Coverage 225 Evasion (%) 42 Recoil Reduction 2 Item Schematics ----------------- None Robot Schematics ------------------ None Fabricated ------------ Nothing Alien Tech Used ----------------- None Achievements -------------- None Challenges ------------ None Game ------ Seed DynamicThrusterComputer Manual? 0 Play Time 00:21:28 Cumulative 52.7 hours Start 2020.10.10 @ 18:13:30 End 2020.10.10 @ 18:52:56 Sessions 1 Manual Loads 0 Difficulty Rogue Special Mode None Game No. 93 Rogue 93 Adventurer 0 Explorer 0 Win Type - Total 0 Types 0/0/0/0/0/0/0/0/0 Lore% 29 Gallery% 44 Achievement% 31 Wizard Run 0 Options --------- ASCII 1 Keyboard 1 Movement Vi Keybinds 0 Fullscreen 2 Font 24/Smallcaps Map View 76x50 Tactical HUD 1 Map Filters SATURATION(70) Filters SATURATION(65)|SHIFT_HUE(15) Steam 1 RUN: 2c205edb-b94f-4f29-9af7-3eb74a282ede